fUST/lending_fUST_20240124
["ID","MTS","AMOUNT","RATE_DAILY","PERIOD"]
[312589276,1706037042908,-203.98204841,0.00041095,31]
[312589278,1706037042924,-844.37076694,0.00041095,31]
[312589280,1706037043084,300.0,0.0003,4]
[312589281,1706037043305,-3840.25718465,0.00041095,31]
[312589282,1706037043317,-500.0,0.00041095,31]
[312589283,1706037043327,-527.88,0.00041095,20]
[312589284,1706037043336,-631.23,0.00041095,31]
[312589285,1706037043345,-500.0,0.00041095,31]
[312589286,1706037043355,-516.01891626,0.00041095,31]
[312589287,1706037043366,-500.0,0.00041095,31]
[312589288,1706037043376,-500.0,0.00041095,31]
[312589289,1706037043386,-500.0,0.00041095,31]
[312589290,1706037043395,-1233.83,0.00041095,31]
[312589291,1706037043405,-500.0,0.00041095,31]
[312589292,1706037043414,-756.58,0.00041095,31]
[312589293,1706037043423,-502.23335856,0.00041095,31]
[312589294,1706037043433,-500.0,0.00041095,31]
[312589295,1706037043442,-500.0,0.00041095,2]
[312589296,1706037043451,-875.32,0.00041095,31]
[312589297,1706037043460,-500.0,0.00041095,31]
[312589298,1706037043469,-501.983632,0.00041095,31]
[312589299,1706037043478,-516.46,0.00041095,31]
[312589300,1706037043487,-500.0,0.00041095,31]
[312589301,1706037043496,-842.54,0.00041095,31]
[312589302,1706037043505,-501.99559309,0.00041095,31]
[312589303,1706037043514,-500.0,0.00041095,31]
[312589304,1706037043523,-503.83046356,0.00041095,31]
[312589305,1706037043531,-500.0,0.00041095,31]
[312589306,1706037043540,-500.0,0.00041095,31]
[312589307,1706037043549,-500.0,0.00041095,31]
[312589308,1706037043558,-1325.01,0.00041095,31]
[312589309,1706037043567,-476.7200108,0.00041095,31]
[312589310,1706037043576,-582.948437,0.00041095,31]
[312589311,1706037043585,-500.0,0.00041095,31]
[312589312,1706037043594,-500.0,0.00041095,31]
[312589313,1706037043604,-500.0,0.00041095,31]
[312589314,1706037043612,-550.78189034,0.00041095,31]
[312589315,1706037043620,-500.0,0.00041095,31]
[312589316,1706037043628,-500.0,0.00041095,31]
[312589317,1706037043637,-500.0,0.00041095,31]
[312589318,1706037043646,-500.0,0.00041095,31]
[312589319,1706037043655,-503.12447277,0.00041095,31]
[312589320,1706037043664,-500.0,0.00041095,31]
[312589321,1706037043673,-773.57,0.00041095,31]
[312589322,1706037043682,-500.0,0.00041095,31]
[312589323,1706037043691,-500.0,0.00041095,31]
[312589324,1706037043699,-1000.0,0.00041095,2]
[312589325,1706037043709,-500.0,0.00041095,31]
[312589326,1706037043718,-500.0,0.00041095,31]
[312589327,1706037043727,-500.0,0.00041095,31]
[312589328,1706037043736,-500.0,0.00041095,31]
[312589329,1706037043745,-500.0,0.00041095,31]
[312589330,1706037043754,-500.0,0.00041095,31]
[312589331,1706037043763,-1388.64,0.00041095,31]
[312589332,1706037043772,-500.0,0.00041095,31]
[312589333,1706037043781,-500.0,0.00041095,31]
[312589334,1706037043790,-500.0,0.00041095,31]
[312589335,1706037043799,-500.0,0.00041095,31]
[312589336,1706037043808,-10493.74,0.00041095,31]
[312589337,1706037043817,-667.51,0.00041095,31]
[312589338,1706037043826,-4157.77,0.00041095,31]
[312589339,1706037043835,-500.0,0.00041095,31]
[312589340,1706037043844,-500.0,0.00041095,31]
[312589341,1706037043853,-500.0,0.00041095,31]
[312589342,1706037043862,-526.74537546,0.00041095,31]
[312589343,1706037043871,-668.52,0.00041095,31]
[312589344,1706037043879,-500.0,0.00041095,31]
[312589345,1706037043889,-500.0,0.00041095,31]
[312589346,1706037043898,-2345.50025418,0.00041095,7]
[312589347,1706037043907,-500.0,0.00041095,31]
[312589348,1706037043917,-877.04,0.00041095,31]
[312589349,1706037043926,-500.0,0.00041095,31]
[312589350,1706037043935,-500.0,0.00041095,31]
[312589351,1706037043943,-500.0,0.00041095,31]
[312589352,1706037043953,-500.0,0.00041095,31]
[312589353,1706037043962,-1630.12,0.00041095,31]
[312589354,1706037043971,-500.0,0.00041095,31]
[312589355,1706037043980,-500.0,0.00041095,31]
[312589356,1706037043990,-517.9,0.00041095,31]
[312589357,1706037044000,-502.63,0.00041095,31]
[312589358,1706037044010,-601.41,0.00041095,31]
[312589359,1706037044019,-26611.84,0.00041095,14]
[312589360,1706037044028,-500.0,0.00041095,31]
[312589361,1706037044038,-500.0,0.00041095,31]
[312589362,1706037044047,-500.0,0.00041095,31]
[312589363,1706037044057,-500.0,0.00041095,31]
[312589364,1706037044066,-788.54,0.00041095,31]
[312589365,1706037044075,-500.0,0.00041095,31]
[312589366,1706037044084,-500.0,0.00041095,31]
[312589367,1706037044093,-510.42695868,0.00041095,31]
[312589368,1706037044102,-500.0,0.00041095,31]
[312589369,1706037044111,-2016.28,0.00041095,31]
[312589370,1706037044121,-500.0,0.00041095,31]
[312589371,1706037044131,-500.0,0.00041095,31]
[312589372,1706037044140,-2694.73,0.00041095,31]
[312589373,1706037044149,-500.0,0.00041095,31]
[312589374,1706037044159,-2336.18,0.00041095,31]
[312589375,1706037044168,-680.46,0.00041095,31]
[312589376,1706037044178,-1160.15,0.00041095,31]
[312589377,1706037044188,-752.75,0.00041095,31]
[312589378,1706037044197,-500.0,0.00041095,31]
[312589379,1706037044206,-301.64755627,0.00041095,31]
[312589380,1706037044216,-3662.83,0.00041095,31]
[312589381,1706037044225,-500.0,0.00041095,31]
[312589382,1706037044235,-500.0,0.00041095,31]
[312589383,1706037044245,-500.0,0.00041095,31]
[312589384,1706037044254,-501.94403874,0.00041095,31]
[312589385,1706037044264,-1342.57,0.00041095,31]
[312589386,1706037044273,-1000.0,0.00041095,2]
[312589387,1706037044283,-500.0,0.00041095,31]
[312589388,1706037044292,-500.0,0.00041095,31]
[312589389,1706037044302,-500.0,0.00041095,31]
[312589390,1706037044312,-500.0,0.00041095,31]
[312589391,1706037044320,-500.0,0.00041095,31]
[312589392,1706037044329,-229.86827341,0.00041095,31]
[312589393,1706037044339,-587.10076292,0.00041095,31]
[312589394,1706037044348,-500.0,0.00041095,31]
[312589395,1706037044357,-500.0,0.00041095,31]
[312589396,1706037044367,-500.0,0.00041095,31]
[312589397,1706037044377,-500.0,0.00041095,31]
[312589398,1706037044386,-500.0,0.00041095,31]
[312589399,1706037044394,-501.49204864,0.00041095,31]
[312589400,1706037044403,-500.0,0.00041095,31]
[312589401,1706037044413,-712.42,0.00041095,31]
[312589402,1706037044422,-500.0,0.00041095,31]
[312589403,1706037044432,-500.0,0.00041095,31]
[312589404,1706037044442,-500.0,0.00041095,31]
[312589405,1706037044452,-486.77105883,0.00041095,31]
[312589406,1706037044462,-339.43796185,0.00041095,31]
[312589407,1706037044471,-500.0,0.00041095,31]
[312589408,1706037044480,-500.0,0.00041095,31]
[312589409,1706037044490,-500.0,0.00041095,31]
[312589410,1706037044499,-500.0,0.00041095,31]
[312589411,1706037044510,-500.0,0.00041095,31]
[312589412,1706037044519,-400.76743036,0.00041095,31]
[312589413,1706037044528,-1601.77,0.00041095,31]
[312589414,1706037044537,-151.0,0.00041095,2]
[312589415,1706037044546,-151.0,0.00041095,2]
[312589416,1706037044555,-158.257111,0.00041095,2]
[312589417,1706037044565,-158.257111,0.00041095,2]
[312589418,1706037044574,-158.257111,0.00041095,2]
[312589419,1706037044583,-158.257111,0.00041095,2]
[312589420,1706037044593,-158.257111,0.00041095,2]
[312589421,1706037044602,-158.257111,0.00041095,2]
[312589422,1706037044611,-151.0,0.00041095,2]
[312589423,1706037044620,-151.0,0.00041095,2]
[312589424,1706037044629,-151.0,0.00041095,2]
[312589425,1706037044638,-2081.045582,0.00041095,2]
[312589426,1706037044647,-2081.045582,0.00041095,2]
[312589427,1706037044656,-2081.045582,0.00041095,2]
[312589428,1706037044665,-2081.045582,0.00041095,2]
[312589429,1706037044674,-2081.045582,0.00041095,2]
[312589430,1706037044683,-2081.045582,0.00041095,2]
[312589431,1706037044693,-153.17242078,0.00041179,30]
[312589432,1706037044702,-153.17242078,0.00041182,30]
[312589433,1706037044711,-151.0,0.00041368,7]
[312589434,1706037044721,-10268.3054415,0.00041368,4]
[312589435,1706037044730,-170.52701437,0.00041369,4]
[312589436,1706037044738,-500.0,0.00041369,31]
[312589437,1706037044747,-500.0,0.00041369,31]
[312589438,1706037044756,-500.0,0.00041369,31]
[312589439,1706037044765,-500.0,0.00041369,31]
[312589440,1706037044774,-500.0,0.00041369,31]
[312589441,1706037044868,-312.10216984,0.00041369,31]
[312589442,1706037044877,-597.5274217,0.00041369,31]
[312589443,1706037044887,-500.0,0.00041369,31]
[312589444,1706037044898,-500.0,0.00041369,31]
[312589445,1706037044907,-1737.38,0.00041369,2]
[312589446,1706037044916,-573.84,0.00041369,31]
[312589447,1706037044927,-500.0,0.00041369,31]
[312589448,1706037044936,-500.0,0.00041369,31]
[312589449,1706037044945,-500.0,0.00041369,31]
[312589450,1706037044954,-500.0,0.00041369,31]
[312589451,1706037044963,-500.0,0.00041369,31]
[312589452,1706037044972,-500.0,0.00041369,31]
[312589453,1706037044982,-500.0,0.00041369,31]
[312589454,1706037044991,-500.0,0.00041369,7]
[312589455,1706037045000,-500.0,0.00041369,31]
[312589456,1706037045010,-500.0,0.00041369,31]
[312589457,1706037045019,-150.0,0.00041369,31]
[312589458,1706037045029,-554.14,0.00041369,31]
[312589459,1706037045038,-500.0,0.00041369,31]
[312589460,1706037045047,-500.0,0.00041369,31]
[312589461,1706037045056,-500.0,0.00041369,31]
[312589462,1706037045067,-509.65047196,0.00041369,31]
[312589463,1706037045076,-500.0,0.00041369,31]
[312589464,1706037045086,-500.0,0.00041369,31]
[312589465,1706037045095,-975.59,0.00041369,31]
[312589466,1706037045104,-500.0,0.00041369,31]
[312589467,1706037045113,-500.0,0.00041369,31]
[312589468,1706037045124,-500.0,0.00041369,31]
[312589469,1706037045133,-500.0,0.00041369,31]
[312589470,1706037045142,-500.0,0.00041369,31]
[312589471,1706037045151,-836.28,0.00041369,31]
[312589472,1706037045160,-500.0,0.00041369,31]
[312589473,1706037045170,-500.0,0.00041369,31]
[312589474,1706037045179,-387.2492246,0.00041369,31]
[312589475,1706037045189,-500.0,0.00041369,31]
[312589476,1706037045198,-500.0,0.00041369,31]
[312589477,1706037045207,-500.0,0.00041369,31]
[312589478,1706037045215,-500.0,0.00041369,31]
[312589479,1706037045224,-500.0,0.00041369,31]
[312589480,1706037045234,-500.0,0.00041369,31]
[312589481,1706037045243,-500.0,0.00041369,31]
[312589482,1706037045252,-500.0,0.00041369,31]
[312589483,1706037045261,-500.0,0.00041369,31]
[312589484,1706037045270,-500.0,0.00041369,7]
[312589485,1706037045280,-500.0,0.00041369,31]
[312589486,1706037045290,-500.0,0.00041369,31]
[312589487,1706037045299,-500.0,0.00041369,31]
[312589488,1706037045309,-500.0,0.00041369,31]
[312589489,1706037045318,-519.03062123,0.00041369,31]
[312589490,1706037045327,-504.42578945,0.00041369,31]
[312589491,1706037045336,-500.0,0.00041369,31]
[312589492,1706037045346,-503.69946943,0.00041369,31]
[312589493,1706037045354,-500.0,0.00041369,31]
[312589494,1706037045364,-500.0,0.00041369,31]
[312589495,1706037045373,-500.0,0.00041369,31]
[312589496,1706037045382,-500.0,0.00041369,31]
[312589497,1706037045391,-403.75474858,0.00041369,31]
[312589498,1706037045400,-500.0,0.00041369,31]
[312589499,1706037045409,-500.0,0.00041369,31]
[312589500,1706037045419,-185.5537441,0.00041369,31]
[312589501,1706037045429,-500.0,0.00041369,31]
[312589502,1706037045438,-1526.53,0.00041369,31]
[312589503,1706037045448,-587.59,0.00041369,31]
[312589504,1706037045457,-500.0,0.00041369,31]
[312589505,1706037045467,-500.0,0.00041369,31]
[312589506,1706037045476,-500.0,0.00041369,31]
[312589507,1706037045486,-500.0,0.00041369,31]
[312589508,1706037045496,-500.0,0.00041369,31]
[312589509,1706037045505,-500.0,0.00041369,31]
[312589510,1706037045515,-568.41,0.00041369,31]
[312589512,1706037045527,-500.0,0.00041369,31]
[312589513,1706037045537,-803.44,0.00041369,31]
[312589514,1706037045546,-500.0,0.00041369,31]
[312589515,1706037045555,-500.0,0.00041369,31]
[312589516,1706037045565,-511.42715573,0.00041369,31]
[312589517,1706037045574,-928.4,0.00041369,31]
[312589518,1706037045582,-500.0,0.00041369,31]
[312589519,1706037045592,-1000.0,0.00041369,2]
[312589520,1706037045601,-500.0,0.00041369,31]
[312589521,1706037045610,-583.54,0.00041369,31]
[312589522,1706037045620,-241.71052602,0.00041369,31]
[312589523,1706037045629,-769.96,0.00041369,31]
[312589524,1706037045638,-500.0,0.00041369,31]
[312589525,1706037045647,-500.0,0.00041369,31]
[312589526,1706037045656,-664.95,0.00041369,31]
[312589527,1706037045665,-500.0,0.00041369,31]
[312589528,1706037045675,-500.0,0.00041369,31]
[312589529,1706037045684,-500.0,0.00041369,31]
[312589530,1706037045693,-500.0,0.00041369,31]
[312589531,1706037045702,-1240.8,0.00041369,31]
[312589532,1706037045711,-500.0,0.00041369,31]
[312589533,1706037045720,-500.0,0.00041369,31]
[312589534,1706037045730,-500.0,0.00041369,31]
[312589535,1706037045740,-507.84132599,0.00041369,31]
[312589536,1706037045749,-500.0,0.00041369,6]
[312589537,1706037045758,-500.0,0.00041369,31]
[312589538,1706037045768,-500.0,0.00041369,31]
[312589539,1706037045777,-662.56,0.00041369,31]
[312589540,1706037045786,-509.19883967,0.00041369,31]
[312589541,1706037045795,-500.0,0.00041369,31]
[312589542,1706037045804,-500.0,0.00041369,31]
[312589543,1706037045815,-810.35,0.00041369,31]
[312589544,1706037045824,-500.0,0.00041369,31]
[312589545,1706037045833,-500.0,0.00041369,31]
[312589546,1706037045843,-936.19,0.00041369,31]
[312589547,1706037045852,-500.0,0.00041369,31]
[312589548,1706037045861,-644.94,0.00041369,31]
[312589549,1706037045871,-500.0,0.00041369,31]
[312589550,1706037045880,-1012.08,0.00041369,31]
[312589551,1706037045890,-500.0,0.00041369,31]
[312589552,1706037045900,-503.94267412,0.00041369,31]
[312589553,1706037045909,-500.0,0.00041369,31]
[312589555,1706037045920,-500.0,0.00041369,31]
[312589556,1706037045929,-500.0,0.00041369,31]
[312589557,1706037045938,-500.0,0.00041369,31]
[312589558,1706037045947,-500.0,0.00041369,31]
[312589559,1706037045956,-500.0,0.00041369,31]
[312589560,1706037045966,-2006.77,0.00041369,31]
[312589561,1706037045975,-753.82,0.00041369,31]
[312589562,1706037045984,-500.0,0.00041369,31]
[312589563,1706037045994,-836.86,0.00041369,31]
[312589564,1706037046004,-500.0,0.00041369,31]
[312589565,1706037046014,-500.0,0.00041369,31]
[312589566,1706037046023,-500.0,0.00041369,31]
[312589567,1706037046033,-500.0,0.00041369,31]
[312589568,1706037046044,-500.0,0.00041369,31]
[312589569,1706037046054,-500.0,0.00041369,31]
[312589570,1706037046064,-500.0,0.00041369,31]
[312589571,1706037046074,-500.0,0.00041369,31]
[312589572,1706037046084,-500.0,0.00041369,31]
[312589573,1706037046094,-500.0,0.00041369,31]
[312589574,1706037046104,-500.0,0.00041369,31]
[312589575,1706037046113,-500.0,0.00041369,31]
[312589576,1706037046122,-3125.81,0.00041369,31]
[312589577,1706037046132,-500.0,0.00041369,7]
[312589578,1706037046142,-500.0,0.00041369,31]
[312589579,1706037046151,-500.0,0.00041369,31]
[312589580,1706037046161,-500.0,0.00041369,31]
[312589581,1706037046170,-1046.12,0.00041369,31]
[312589582,1706037046180,-500.0,0.00041369,31]
[312589583,1706037046189,-1533.55,0.00041369,31]
[312589584,1706037046199,-500.0,0.00041369,31]
[312589585,1706037046209,-220.0,0.00041369,2]
[312589586,1706037046219,-500.0,0.00041369,31]
[312589587,1706037046228,-534.98756915,0.00041369,31]
[312589588,1706037046238,-513.33304006,0.00041369,31]
[312589589,1706037046249,-500.0,0.00041369,31]
[312589590,1706037046258,-500.0,0.00041369,31]
[312589591,1706037046268,-410.19959368,0.00041369,31]
[312589592,1706037046278,-556.14,0.00041369,31]
[312589594,1706037046288,-500.0,0.00041369,31]
[312589597,1706037046298,-2142.23,0.00041369,31]
[312589599,1706037046308,-200.0,0.00041369,31]
[312589601,1706037046319,-1492.04,0.00041369,31]
[312589603,1706037046328,-150.0,0.00041369,14]
[312589604,1706037046337,-1000.0,0.00041369,2]
[312589606,1706037046346,-500.0,0.00041369,7]
[312589608,1706037046355,-557.88,0.00041369,31]
[312589610,1706037046364,-500.0,0.00041369,31]
[312589612,1706037046374,-222.85393327,0.00041369,31]
[312589614,1706037046384,-500.0,0.00041369,31]
[312589616,1706037046393,-500.0,0.00041369,2]
[312589618,1706037046403,-570.77,0.00041369,31]
[312589620,1706037046412,-500.0,0.00041369,31]
[312589621,1706037046421,-830.51,0.00041369,31]
[312589622,1706037046430,-1071.98,0.00041369,31]
[312589623,1706037046440,-617.33,0.00041369,31]
[312589624,1706037046450,-221.60056194,0.00041369,31]
[312589625,1706037046459,-500.0,0.00041369,31]
[312589626,1706037046468,-500.0,0.00041369,31]
[312589627,1706037046476,-500.0,0.00041369,31]
[312589628,1706037046486,-2589.44,0.00041369,31]
[312589629,1706037046495,-500.0,0.00041369,31]
[312589630,1706037046505,-500.0,0.00041369,31]
[312589631,1706037046515,-1336.98,0.00041369,31]
[312589632,1706037046524,-689.22,0.00041369,31]
[312589633,1706037046533,-505.83463993,0.00041369,31]
[312589634,1706037046543,-500.0,0.00041369,31]
[312589635,1706037046552,-1436.14,0.00041369,31]
[312589636,1706037046564,-500.0,0.00041369,31]
[312589637,1706037046574,-1212.95,0.00041369,31]
[312589638,1706037046583,-500.0,0.00041369,31]
[312589639,1706037046592,-500.0,0.00041369,31]
[312589640,1706037046602,-952.27,0.00041369,31]
[312589641,1706037046612,-500.0,0.00041369,31]
[312589642,1706037046622,-500.0,0.00041369,31]
[312589643,1706037046632,-518.86282913,0.00041369,31]
[312589644,1706037046642,-500.0,0.00041369,31]
[312589645,1706037046652,-511.7646133,0.00041369,31]
[312589646,1706037046662,-500.0,0.00041369,31]
[312589647,1706037046671,-246.46435968,0.00041369,31]
[312589648,1706037046682,-560.07407215,0.00041369,31]
[312589649,1706037046692,-524.23,0.00041369,31]
[312589650,1706037046701,-500.0,0.00041369,31]
[312589651,1706037046711,-500.0,0.00041369,31]
[312589652,1706037046721,-502.78782869,0.00041369,31]
[312589653,1706037046730,-500.0,0.00041369,31]
[312589654,1706037046740,-500.0,0.00041369,31]
[312589655,1706037046749,-500.0,0.00041369,31]
[312589656,1706037046759,-500.0,0.00041369,31]
[312589657,1706037046769,-330.042858,0.00041369,31]
[312589658,1706037046779,-4888.61,0.00041369,31]
[312589659,1706037046868,-500.0,0.00041369,31]
[312589660,1706037046877,-527.88,0.00041369,20]
[312589661,1706037046887,-631.23,0.00041369,31]
[312589662,1706037046896,-192.11696936,0.00041369,31]
[312589663,1706037046905,-588.07640177,0.00041369,31]
[312589664,1706037046916,-500.0,0.00041369,31]
[312589665,1706037046926,-534.62835977,0.00041369,31]
[312589666,1706037046935,-1233.83,0.00041369,31]
[312589667,1706037046944,-756.58,0.00041369,31]
[312589668,1706037046954,-500.0,0.00041369,31]
[312589669,1706037046964,-500.0,0.00041369,2]
[312589670,1706037046973,-875.32,0.00041369,31]
[312589671,1706037046983,-500.0,0.00041369,31]
[312589672,1706037046993,-516.46,0.00041369,31]
[312589673,1706037047002,-289.91051665,0.00041369,31]
[312589674,1706037047012,-842.54,0.00041369,31]
[312589675,1706037047022,-500.0,0.00041369,31]
[312589676,1706037047031,-500.0,0.00041369,31]
[312589677,1706037047041,-500.0,0.00041369,31]
[312589678,1706037047051,-500.0,0.00041369,31]
[312589679,1706037047063,-1325.01,0.00041369,31]
[312589680,1706037047072,-500.0,0.00041369,31]
[312589681,1706037047082,-500.0,0.00041369,31]
[312589682,1706037047091,-528.41103692,0.00041369,31]
[312589683,1706037047101,-545.235161,0.00041369,31]
[312589684,1706037047111,-500.0,0.00041369,31]
[312589685,1706037047120,-500.0,0.00041369,31]
[312589686,1706037047130,-500.0,0.00041369,31]
[312589687,1706037047139,-500.0,0.00041369,31]
[312589688,1706037047149,-773.57,0.00041369,31]
[312589689,1706037047158,-500.0,0.00041369,31]
[312589690,1706037047167,-502.71475331,0.00041369,31]
[312589691,1706037047176,-1000.0,0.00041369,2]
[312589692,1706037047186,-500.0,0.00041369,31]
[312589693,1706037047195,-500.0,0.00041369,31]
[312589694,1706037047204,-500.0,0.00041369,31]
[312589695,1706037047214,-500.0,0.00041369,31]
[312589696,1706037047223,-500.0,0.00041369,31]
[312589697,1706037047232,-500.0,0.00041369,31]
[312589698,1706037047242,-1388.64,0.00041369,31]
[312589699,1706037047251,-500.0,0.00041369,31]
[312589700,1706037047260,-500.0,0.00041369,31]
[312589701,1706037047270,-500.0,0.00041369,31]
[312589702,1706037047279,-500.0,0.00041369,31]
[312589703,1706037047288,-10493.74,0.00041369,31]
[312589704,1706037047297,-667.51,0.00041369,31]
[312589705,1706037047306,-4157.77,0.00041369,31]
[312589706,1706037047317,-500.0,0.00041369,31]
[312589707,1706037047325,-500.0,0.00041369,31]
[312589708,1706037047334,-259.76762901,0.00041369,31]
[312589709,1706037047343,-668.52,0.00041369,31]
[312589710,1706037047352,-500.0,0.00041369,31]
[312589711,1706037047361,-500.0,0.00041369,31]
[312589712,1706037047370,-500.0,0.00041369,31]
[312589713,1706037047379,-877.04,0.00041369,31]
[312589714,1706037047388,-500.0,0.00041369,31]
[312589715,1706037047397,-504.31655243,0.00041369,31]
[312589716,1706037047406,-500.0,0.00041369,31]
[312589717,1706037047415,-1630.12,0.00041369,31]
[312589718,1706037047424,-301.31584025,0.00041369,31]
[312589719,1706037047433,-500.0,0.00041369,31]
[312589720,1706037047440,-517.9,0.00041369,31]
[312589721,1706037047450,-502.63,0.00041369,31]
[312589722,1706037047458,-601.41,0.00041369,31]
[312589723,1706037047468,-26611.84,0.00041369,14]
[312589724,1706037047477,-200.0,0.00041369,31]
[312589725,1706037047486,-500.0,0.00041369,31]
[312589726,1706037047495,-500.0,0.00041369,31]
[312589727,1706037047504,-500.0,0.00041369,31]
[312589728,1706037047513,-500.0,0.00041369,31]
[312589729,1706037047521,-500.0,0.00041369,31]
[312589730,1706037047530,-788.54,0.00041369,31]
[312589731,1706037047539,-500.0,0.00041369,31]
[312589732,1706037047548,-2016.28,0.00041369,31]
[312589733,1706037047557,-500.0,0.00041369,31]
[312589734,1706037047570,-500.0,0.00041369,31]
[312589735,1706037047580,-2694.73,0.00041369,31]
[312589736,1706037047590,-500.0,0.00041369,31]
[312589737,1706037047599,-2336.18,0.00041369,31]
[312589738,1706037047609,-680.46,0.00041369,31]
[312589739,1706037047618,-1160.15,0.00041369,31]
[312589740,1706037047628,-752.75,0.00041369,31]
[312589741,1706037047638,-500.0,0.00041369,31]
[312589742,1706037047649,-3662.83,0.00041369,31]
[312589743,1706037047658,-500.0,0.00041369,31]
[312589744,1706037047668,-500.0,0.00041369,31]
[312589745,1706037047678,-297.05552429,0.00041369,31]
[312589746,1706037047688,-480.87476521,0.00041369,2]
[312589747,1706037047697,-1342.57,0.00041369,31]
[312589748,1706037047707,-500.0,0.00041369,31]
[312589749,1706037047717,-500.0,0.00041369,31]
[312589750,1706037047726,-500.0,0.00041369,31]
[312589751,1706037047735,-532.31391101,0.00041369,31]
[312589752,1706037047744,-500.0,0.00041369,31]
[312589753,1706037047753,-449.35199069,0.00041369,31]
[312589754,1706037047762,-500.0,0.00041369,31]
[312589755,1706037047771,-500.0,0.00041369,31]
[312589756,1706037047780,-500.0,0.00041369,31]
[312589757,1706037047790,-583.10514427,0.00041369,31]
[312589758,1706037047799,-712.42,0.00041369,31]
[312589759,1706037047808,-500.0,0.00041369,31]
[312589760,1706037047818,-500.0,0.00041369,31]
[312589761,1706037047827,-500.0,0.00041369,31]
[312589762,1706037047836,-500.0,0.00041369,31]
[312589763,1706037047845,-500.0,0.00041369,31]
[312589764,1706037047854,-500.0,0.00041369,31]
[312589765,1706037047862,-500.0,0.00041369,31]
[312589766,1706037047871,-1601.77,0.00041369,31]
[312589767,1706037047881,-151.0,0.00041369,7]
[312589768,1706037047890,-151.0,0.00041369,7]
[312589769,1706037047899,-151.0,0.00041369,7]
[312589770,1706037047908,-151.0,0.00041369,7]
[312589771,1706037047920,-151.0,0.00041369,7]
[312589772,1706037047929,-151.0,0.00041369,7]
[312589773,1706037047938,-151.0,0.00041369,7]
[312589774,1706037047947,-151.0,0.00041369,7]
[312589775,1706037047957,-151.0,0.00041369,7]
[312589776,1706037047967,-151.0,0.00041369,7]
[312589777,1706037047977,-151.0,0.00041369,7]
[312589778,1706037047989,-158.257111,0.00041369,7]
[312589779,1706037047998,-158.257111,0.00041369,7]
[312589780,1706037048008,-158.257111,0.00041369,7]
[312589781,1706037048018,-158.257111,0.00041369,7]
[312589782,1706037048027,-158.257111,0.00041369,7]
[312589783,1706037048036,-158.257111,0.00041369,7]
[312589784,1706037048045,-158.257111,0.00041369,7]
[312589785,1706037048055,-158.257111,0.00041369,7]
[312589786,1706037048064,-158.257111,0.00041369,7]
[312589787,1706037048074,-158.257111,0.00041369,7]
[312589788,1706037048084,-205.903758,0.00041369,7]
[312589789,1706037048092,-2081.045582,0.00041369,7]
[312589790,1706037048102,-2081.045582,0.00041369,7]
[312589791,1706037048111,-2081.045582,0.00041369,7]
[312589792,1706037048120,-2081.045582,0.00041369,7]
[312589793,1706037048129,-2081.045582,0.00041369,7]